bitfinex-derivatives/quotes_SOLF0:USTF0_20250929
["timestamp","ask_amount","ask_price","bid_price","bid_amount"]
[1759163717438,9.68319831,210.91,210.82,9.71319831]
[1759163718036,4.2648,210.9,210.82,9.71319831]
[1759163718332,9.68319831,210.91,210.82,9.71319831]
[1759163718333,7.46,210.91,210.84,2.22319831]
[1759163719736,7.46,210.87,210.84,2.22319831]
[1759163719937,7.46,210.87,210.82,23.89641365]
[1759163720137,7.46,210.87,210.82,9.71319831]
[1759163720341,66.3279,210.94,210.78,4.2669]
[1759163720342,7.46,210.86,210.78,4.2669]
[1759163720636,7.46,210.86,210.77,7.49]
[1759163720833,7.46,210.82,210.74,2.22319831]
[1759163721034,7.46,210.82,210.72,2.22319831]
[1759163721335,7.46,210.82,210.7,0.34883]
[1759163721336,4.2677,210.75,210.7,0.34883]
[1759163721531,7.46,210.74,210.7,0.34883]
[1759163721838,2.22319831,210.75,210.7,0.34883]
[1759163721839,119.06319831,210.75,210.7,0.34883]
[1759163722040,7.46,210.73,210.7,0.34883]
[1759163722236,7.46,210.72,210.7,0.34883]
[1759163722834,4.2683,210.73,210.7,0.34883]
[1759163723036,7.46,210.72,210.7,0.34883]
[1759163723339,7.46,210.71,210.62,7.49]
[1759163723543,7.46,210.71,210.58,7.49]
[1759163723744,10.92782013,210.71,210.58,7.49]
[1759163724242,10.92782013,210.71,210.63,3.46782013]
[1759163724243,7.46,210.71,210.63,3.46782013]
[1759163724438,7.46,210.71,210.64,7.99]
[1759163725034,113.04,210.74,210.64,7.99]
[1759163725835,113.04,210.74,210.58,66.4398]
[1759163726045,7.63,210.73,210.6,3.46782013]
[1759163726738,4.2691,210.68,210.6,3.46782013]
[1759163726938,7.63,210.67,210.59,12.2608]
[1759163727536,4.2695,210.66,210.58,13.89201139]
[1759163727734,4.2695,210.66,210.56,4.2714]
[1759163728338,11.9,210.64,210.55,7.99]
[1759163728536,7.63,210.64,210.55,22.12448268]
[1759163730534,66.4248,210.63,210.5,7.99]
[1759163730734,7.63,210.62,210.5,7.99]
[1759163731245,7.63,210.62,210.5,22.1306884]
[1759163731441,7.63,210.62,210.52,7.99]
[1759163732145,7.63,210.62,210.54,4.2719]
[1759163733036,7.63,210.62,210.56,4.2715]
[1759163734148,7.63,210.62,210.53,4.272]
[1759163734745,7.63,210.62,210.52,7.99]
[1759163735749,7.63,210.62,210.54,4.2719]
[1759163736748,7.63,210.62,210.52,12.2623]
[1759163737350,74.55,210.62,210.52,12.2623]
[1759163737542,4.2708,210.6,210.52,12.2623]
[1759163738050,7.63,210.59,210.52,7.99]
[1759163738247,7.63,210.59,210.5,17.94822291]
[1759163738451,11.9011,210.59,210.5,17.94822291]
[1759163738752,7.63,210.59,210.5,17.94822291]
[1759163739143,4.2711,210.58,210.5,3.46782013]
[1759163739554,7.63,210.59,210.51,4.2725]
[1759163740347,11.9011,210.59,210.51,4.2725]
[1759163742054,11.9011,210.59,210.51,12.2625]
[1759163743952,7.63,210.59,210.53,4.2721]
[1759163744555,7.63,210.59,210.51,12.2625]
[1759163745653,11.9011,210.59,210.51,12.2625]
[1759163745856,7.63,210.59,210.52,4.2722]
[1759163747948,7.63,210.59,210.48,4.273]
[1759163748151,7.63,210.58,210.47,3.46782013]
[1759163748354,116.98,210.61,210.51,7.99]
[1759163748555,116.98,210.61,210.53,4.272]
[1759163749259,121.2507,210.61,210.53,4.272]
[1759163749454,4.2707,210.61,210.53,4.272]
[1759163749764,4.2707,210.61,210.54,4.2718]
[1759163749958,4.2707,210.61,210.54,12.2618]
[1759163751662,4.2709,210.6,210.54,12.2618]
[1759163753260,7.63,210.62,210.55,4.2716]
[1759163753661,7.63,210.62,210.54,7.99]
[1759163754668,4.2709,210.6,210.54,7.99]
[1759163755365,11.9004,210.62,210.54,7.99]
[1759163755862,7.63,210.62,210.54,7.99]
[1759163756660,4.2706,210.61,210.55,4.2716]
[1759163756861,116.98,210.63,210.5,10.87782013]
[1759163757369,7.38,210.58,210.5,7.41]
[1759163758560,4.2715,210.57,210.5,11.6827]
[1759163758765,7.38,210.58,210.5,7.41]
[1759163759369,4.2706,210.61,210.52,7.41]
[1759163760065,4.2706,210.61,210.55,4.2716]
[1759163760861,4.2706,210.61,210.53,4.2721]
[1759163761168,11.651,210.59,210.53,4.2721]
[1759163762360,7.38,210.59,210.53,4.2721]
[1759163762566,7.38,210.59,210.54,11.6818]
[1759163762765,7.38,210.59,210.55,7.41]
[1759163762964,7.38,210.62,210.54,4.2718]
[1759163764168,7.38,210.62,210.54,11.6818]
[1759163764572,7.38,210.62,210.54,7.41]
[1759163764763,7.38,210.62,210.5,7.41]
[1759163764958,10.84782013,210.62,210.5,7.41]
[1759163765161,4.2707,210.61,210.5,7.41]
[1759163765368,10.84782013,210.62,210.5,7.41]
[1759163765769,7.38,210.62,210.5,7.41]
[1759163765966,7.38,210.62,210.54,4.2718]
[1759163766871,4.2706,210.61,210.55,4.2716]
[1759163767566,124.36,210.62,210.53,7.41]
[1759163767766,7.38,210.66,210.55,7.41]
[1759163768074,124.36,210.66,210.55,7.41]
[1759163768370,4.2697,210.65,210.59,11.6808]
[1759163769073,124.36,210.66,210.59,11.6808]
[1759163769074,124.36,210.66,210.6,4.2706]
[1759163770173,124.36,210.66,210.59,7.41]
[1759163770174,124.36,210.66,210.58,4.2711]
[1759163770370,124.36,210.66,210.55,7.41]
[1759163770576,11.6505,210.62,210.55,7.41]
[1759163771069,7.38,210.59,210.52,4.2723]
[1759163771373,7.38,210.59,210.48,80.69866013]
[1759163771374,10.84782013,210.61,210.5,7.41]
[1759163771572,7.38,210.59,210.5,7.41]
[1759163771778,4.2715,210.57,210.5,11.6827]
[1759163772069,7.38,210.59,210.5,11.6827]
[1759163772270,113.0347,210.6,210.48,14.22696013]
[1759163772474,7.38,210.59,210.46,7.41]
[1759163772675,4.2713,210.58,210.46,7.41]
[1759163773079,7.38,210.59,210.46,7.41]
[1759163773773,4.2714,210.57,210.48,4.273]
[1759163773975,4.2714,210.57,210.48,11.683]
[1759163774176,4.2714,210.57,210.48,7.41]
[1759163775178,4.2717,210.56,210.49,4.2728]
[1759163775475,12.0017,210.56,210.49,4.2728]
[1759163776074,4.2719,210.55,210.48,7.41]
[1759163776576,7.73,210.56,210.48,7.41]
[1759163777078,7.73,210.56,210.48,11.683]
[1759163777276,7.73,210.56,210.48,7.41]
[1759163778374,4.2719,210.55,210.48,7.41]
[1759163778580,7.73,210.56,210.48,7.41]
[1759163779379,4.2718,210.55,210.48,7.41]
[1759163780080,4.2721,210.54,210.48,7.41]
[1759163780282,7.73,210.53,210.46,14.10777724]
[1759163780477,7.73,210.53,210.45,4.2737]
[1759163780878,7.73,210.51,210.43,11.6841]
[1759163781077,3.31171074,210.5,210.43,11.6841]
[1759163781277,3.31171074,210.49,210.43,11.6841]
[1759163781477,3.31171074,210.48,210.43,11.6841]
[1759163781678,7.73,210.51,210.43,11.6841]
[1759163781879,4.2733,210.48,210.43,7.41]
[1759163782079,11.04137736,210.47,210.4,14.57910683]
[1759163782280,3.31036069,210.46,210.4,14.57910683]
[1759163782482,7.73,210.47,210.4,14.57910683]
[1759163782682,7.5839625,210.46,210.4,14.57910683]
[1759163782877,4.2736,210.46,210.39,11.6848]
[1759163783086,7.73,210.47,210.39,11.6848]
[1759163783282,3.30886413,210.46,210.39,11.6848]
[1759163783584,7.73,210.47,210.39,11.6848]
[1759163783779,7.58253917,210.46,210.39,11.6848]
[1759163783975,3.30897872,210.45,210.39,11.6848]
[1759163784174,4.2737,210.46,210.39,11.6848]
[1759163784382,9.95520134,210.47,210.39,11.6848]
[1759163784580,3.30724868,210.46,210.39,11.6848]
[1759163784775,9.95520134,210.47,210.39,25.58779458]
[1759163784980,3.30724868,210.46,210.39,11.6848]
[1759163785181,9.95520134,210.47,210.39,11.6848]
[1759163785388,3.3056871,210.46,210.39,11.6848]
[1759163785581,11.6126,210.51,210.41,2.22520134]
[1759163785787,3.3054081,210.5,210.43,2.22520134]
[1759163785981,3.3054081,210.49,210.43,2.22520134]
[1759163786286,4.2729,210.5,210.43,6.49930134]
[1759163786481,3.30462472,210.49,210.43,2.22520134]
[1759163786683,5.52985311,210.48,210.39,2.22520134]
[1759163786887,10.64465177,210.47,210.39,2.22520134]
[1759163787089,7.34,210.47,210.39,2.22520134]
[1759163787577,4.2736,210.46,210.39,6.50020134]
[1759163787775,7.34,210.47,210.39,2.22520134]
[1759163788183,4.2741,210.44,210.37,15.12741556]
[1759163788383,7.34,210.45,210.37,10.85201556]
[1759163788579,7.34,210.45,210.37,24.86180934]
[1759163788785,2.22520134,210.48,210.4,11.6946]
[1759163789088,3.30263584,210.47,210.4,11.6946]
[1759163789284,3.30263584,210.47,210.41,2.22520134]
[1759163789486,4.2735,210.47,210.41,2.22520134]
[1759163790176,11.613,210.49,210.41,2.22520134]
[1759163790376,11.613,210.49,210.42,4.2744]
[1759163790581,3.30065246,210.48,210.42,4.2744]
[1759163790886,7.57395246,210.48,210.41,2.22520134]
[1759163791082,7.34,210.47,210.37,22.636608]
[1759163791288,7.34,210.45,210.37,10.85201556]
[1759163791482,7.34,210.45,210.37,2.22520134]
[1759163791682,7.34,210.43,210.35,2.22520134]
[1759163792290,11.6142,210.43,210.35,2.22520134]
[1759163792588,7.34,210.43,210.35,2.22520134]
[1759163793685,4.2747,210.41,210.35,2.22520134]
[1759163794085,4.2749,210.4,210.35,7.42]
[1759163794285,7.34,210.39,210.33,2.22520134]
[1759163795384,4.2753,210.38,210.33,2.22520134]
[1759163795590,7.34,210.38,210.33,9.64520134]
[1759163795789,7.34,210.41,210.33,7.42]
[1759163795993,3.29580147,210.4,210.33,7.42]
[1759163796195,7.34,210.41,210.33,7.42]
[1759163797192,4.2755,210.37,210.33,7.42]
[1759163798897,7.34,210.45,210.35,2.22520134]
[1759163799092,7.34,210.45,210.37,9.64520134]
[1759163799586,4.2743,210.43,210.37,9.64520134]
[1759163800799,11.6138,210.45,210.37,13.92040134]
[1759163801005,7.34,210.45,210.37,13.92040134]
[1759163801898,11.6145,210.42,210.37,9.64520134]
[1759163802091,11.6145,210.42,210.38,7.42]
[1759163803595,7.34,210.42,210.34,7.42]
[1759163804197,7.34,210.42,210.34,9.64520134]
[1759163804590,4.2749,210.4,210.34,9.64520134]
[1759163804999,7.34,210.42,210.34,9.64520134]
[1759163805593,11.6153,210.38,210.34,2.22520134]
[1759163806196,11.6153,210.38,210.34,9.64520134]
[1759163806696,11.6153,210.38,210.34,7.42]
[1759163807101,11.6155,210.37,210.32,2.22520134]
[1759163807302,7.34,210.37,210.33,7.42]
[1759163807492,7.34,210.41,210.33,7.42]
[1759163808600,4.2753,210.38,210.33,7.42]
[1759163808797,4.2753,210.38,210.32,9.64520134]
[1759163809504,4.2755,210.37,210.32,9.64520134]
[1759163809703,7.34,210.36,210.32,9.64520134]
[1759163810110,7.34,210.36,210.33,7.42]
[1759163810311,4.2755,210.37,210.33,7.42]
[1759163810608,7.34,210.4,210.33,7.42]
[1759163810811,83.06,210.44,210.36,2.22520134]
[1759163811013,3.30079093,210.43,210.36,2.22520134]
[1759163812708,11.6147,210.41,210.36,9.64520134]
[1759163812906,11.6147,210.41,210.37,7.42]
[1759163813101,4.2747,210.41,210.37,7.42]
[1759163813306,7.57700747,210.43,210.37,7.42]
[1759163813601,7.57700747,210.43,210.38,2.22520134]
[1759163813804,14.91700747,210.43,210.38,2.22520134]
[1759163814008,11.6145,210.42,210.38,2.22520134]
[1759163814203,11.6145,210.42,210.38,10.20520134]
[1759163815110,4.2747,210.41,210.35,4.2757]
[1759163815413,75.72,210.44,210.36,2.22520134]
[1759163815414,7.95,210.42,210.36,2.22520134]
[1759163816621,4.275,210.4,210.36,2.22520134]
[1759163816911,4.275,210.4,210.36,10.20520134]
[1759163817112,4.2757,210.36,210.32,2.22520134]
[1759163817412,7.95,210.39,210.32,2.22520134]
[1759163817616,3.30677567,210.38,210.32,2.22520134]
[1759163817818,4.2758,210.36,210.33,7.98]
[1759163818413,3.30677567,210.38,210.33,7.98]
[1759163818716,7.95,210.37,210.33,7.98]
[1759163819618,12.2255,210.37,210.33,7.98]
[1759163821315,7.5888824,210.36,210.33,7.98]
[1759163821910,4.2759,210.35,210.32,2.22520134]
[1759163822318,7.95,210.37,210.32,10.20520134]
[1759163822515,3.31438943,210.36,210.32,10.20520134]
[1759163822819,7.59008943,210.36,210.32,10.20520134]
[1759163823223,4.2757,210.36,210.32,10.20520134]
[1759163823421,3.31571278,210.35,210.32,10.20520134]
[1759163823820,3.31571278,210.35,210.32,2.22520134]
[1759163824017,3.31582107,210.37,210.34,2.22520134]
[1759163824223,7.95,210.44,210.36,10.20520134]
[1759163824421,3.31698309,210.43,210.36,10.20520134]
[1759163824616,4.2749,210.4,210.36,10.20520134]
[1759163824816,3.31698309,210.39,210.36,10.20520134]
[1759163825017,3.31698309,210.38,210.36,10.20520134]
[1759163825212,3.31887686,210.37,210.36,10.20520134]
[1759163826521,3.31887686,210.37,210.34,10.20520134]
[1759163826731,11.26887686,210.36,210.31,10.20520134]
[1759163827022,3.31887686,210.35,210.32,7.98]
[1759163827223,7.95,210.36,210.32,7.98]
[1759163827520,121.32936139,210.44,210.35,2.22520134]
[1759163827726,3.32065542,210.43,210.36,7.98]
[1759163827922,3.32065542,210.42,210.36,7.98]
[1759163828121,11.27065542,210.41,210.35,10.20520134]
[1759163828317,3.32065542,210.4,210.36,7.98]
[1759163828521,3.32065542,210.39,210.38,7.98]
[1759163829324,4.2742,210.43,210.37,6.50050134]
[1759163829522,3.32132186,210.42,210.38,2.22520134]
[1759163829722,3.32132186,210.41,210.36,2.22520134]
[1759163829928,3.32132186,210.4,210.34,10.20520134]
[1759163830226,3.32132186,210.39,210.35,7.98]
[1759163830427,7.95,210.41,210.34,10.20520134]
[1759163830627,3.32216067,210.4,210.34,10.20520134]
[1759163830830,3.32216067,210.39,210.34,2.22520134]
[1759163831129,7.95,210.41,210.34,10.20520134]
[1759163831429,7.95,210.41,210.36,2.22520134]
[1759163831430,3.32331993,210.4,210.36,2.22520134]
[1759163831629,3.32331993,210.39,210.37,7.98]
[1759163831923,7.95,210.41,210.37,7.98]
[1759163832130,3.32350795,210.4,210.37,7.98]
[1759163832429,3.32350795,210.39,210.37,7.98]
[1759163832623,12.2247,210.41,210.37,7.98]
[1759163832822,3.32434819,210.4,210.37,7.98]
[1759163833020,3.32434819,210.39,210.37,7.98]
[1759163833228,12.2247,210.41,210.37,7.98]
[1759163833427,3.3250051,210.4,210.36,6.50060134]
[1759163833623,3.3250051,210.39,210.36,6.50060134]
[1759163833819,4.2742,210.43,210.36,14.42060134]
[1759163834022,3.32513544,210.42,210.36,14.42060134]
[1759163834225,3.32513544,210.41,210.37,7.92]
[1759163834429,3.32513544,210.4,210.36,6.50060134]
[1759163834723,3.32513544,210.39,210.36,2.22520134]
[1759163834927,7.95,210.45,210.36,2.22520134]
[1759163835123,3.33793417,210.44,210.36,2.22520134]
[1759163835326,3.33793417,210.43,210.36,10.14520134]
[1759163835529,3.33793417,210.42,210.36,10.14520134]
[1759163835731,3.33793417,210.41,210.37,7.92]
[1759163836027,3.33793417,210.41,210.36,2.22520134]
[1759163836028,3.33793417,210.4,210.36,2.22520134]
[1759163836228,3.33793417,210.39,210.37,7.92]
[1759163836523,3.33793417,210.38,210.37,10.14520134]
[1759163837330,3.33793417,210.38,210.37,7.92]
[1759163837631,3.33793417,210.38,210.37,10.14520134]
[1759163837937,3.33793417,210.38,210.35,2.22520134]
[1759163838127,3.33793417,210.37,210.35,10.14520134]
[1759163838320,3.33793417,210.36,210.35,10.14520134]
[1759163838731,3.33793417,210.36,210.33,2.22520134]
[1759163839029,3.33793417,210.35,210.34,7.92]
[1759163839229,3.34335173,210.35,210.34,7.92]
[1759163843634,13.30936139,210.45,210.34,8.4]
[1759163843828,13.30936139,210.45,210.39,2.22520134]
[1759163844227,13.30936139,210.45,210.38,7.92]
[1759163844634,4.274,210.44,210.38,7.92]
[1759163845535,4.274,210.44,210.38,12.1951]
[1759163846736,9.49296139,210.46,210.39,4.2749]
[1759163847037,9.49296139,210.46,210.4,7.97]
[1759163847238,4.2742,210.43,210.37,7.97]
[1759163848130,12.58936139,210.45,210.34,7.75231797]
[1759163848534,12.58936139,210.45,210.35,7.97]
[1759163848735,7.37,210.45,210.35,7.97]
[1759163848930,4.2743,210.43,210.36,4.2755]
[1759163849139,4.2743,210.43,210.35,7.97]
[1759163849535,4.2745,210.42,210.35,12.2457]
[1759163849737,7.37,210.45,210.35,12.2457]
[1759163849938,7.37,210.44,210.35,12.2457]
[1759163850535,7.37,210.39,210.35,7.97]
[1759163850842,7.37,210.42,210.31,7.97]
[1759163851635,4.2753,210.38,210.31,12.2465]
[1759163852542,4.2749,210.4,210.33,7.97]
[1759163854642,4.2749,210.4,210.34,4.2759]
[1759163855441,3.34153593,210.39,210.34,4.2759]
[1759163855646,3.34153593,210.38,210.35,7.97]
[1759163855845,3.34153593,210.37,210.35,7.97]
[1759163856049,3.34153593,210.36,210.35,7.97]
[1759163857135,5.21936139,210.44,210.35,7.97]
[1759163857136,5.21936139,210.46,210.39,7.97]
[1759163857341,3.31681887,210.45,210.39,3.47651797]
[1759163857541,3.31681887,210.44,210.39,3.47651797]
[1759163857845,3.31681887,210.43,210.39,3.47651797]
[1759163858043,3.31681887,210.42,210.4,7.97]
[1759163858246,4.2732,210.48,210.4,7.97]
[1759163858452,3.31505006,210.47,210.4,7.97]
[1759163858741,3.31505006,210.46,210.43,7.97]
[1759163858941,3.31505006,210.45,210.43,7.97]
[1759163859143,3.31473652,210.44,210.4,12.2447]
[1759163859336,3.31490099,210.43,210.4,7.97]
[1759163859540,3.31490099,210.42,210.36,3.47651797]
[1759163859740,3.31490099,210.41,210.37,7.97]
[1759163860045,3.31490099,210.4,210.37,7.97]
[1759163860238,7.37,210.45,210.37,7.97]
[1759163860544,7.58866697,210.44,210.37,12.2452]
[1759163860845,3.31456697,210.43,210.37,12.2452]
[1759163861040,3.31456697,210.42,210.37,4.2752]
[1759163861235,3.31456697,210.41,210.37,4.2752]
[1759163861436,3.31456697,210.4,210.38,7.97]
[1759163861642,4.2741,210.44,210.38,7.97]
[1759163861945,3.31441359,210.43,210.37,12.2452]
[1759163862146,3.31441359,210.42,210.38,7.97]
[1759163862344,3.31441359,210.41,210.38,7.97]
[1759163862544,3.31441359,210.4,210.38,7.97]
[1759163862843,4.2741,210.44,210.38,7.97]
[1759163863045,7.37,210.42,210.38,7.97]
[1759163863244,3.3142439,210.41,210.38,7.97]
[1759163863544,3.3142439,210.4,210.38,7.97]
[1759163863746,7.37,210.42,210.38,7.97]
[1759163863946,3.31453385,210.41,210.38,7.97]
[1759163864250,3.31453385,210.4,210.37,4.2752]
[1759163864547,4.2738,210.45,210.38,7.97]
[1759163864746,3.3154199,210.44,210.38,7.97]
[1759163864947,3.3154199,210.43,210.37,7.97]
[1759163865241,3.3154199,210.42,210.36,3.47651797]
[1759163865445,3.3154199,210.41,210.36,7.75201797]
[1759163865645,3.3154199,210.4,210.37,7.97]
[1759163865949,4.2741,210.44,210.37,7.97]
[1759163866148,3.31538892,210.43,210.37,7.97]
[1759163866344,3.31538892,210.42,210.36,15.72201797]
[1759163866544,3.31538892,210.41,210.37,7.97]
[1759163866842,3.31538892,210.4,210.36,7.75201797]
[1759163867039,4.2741,210.44,210.36,15.72201797]
[1759163867237,3.31568273,210.43,210.36,15.72201797]
[1759163867442,3.31568273,210.42,210.36,15.72201797]
[1759163867643,3.31568273,210.41,210.36,7.75201797]
[1759163867851,3.31568273,210.4,210.37,7.97]
[1759163868051,7.37,210.43,210.37,7.97]
[1759163868351,10.68613147,210.42,210.37,7.97]
[1759163868551,3.31613147,210.41,210.37,7.97]
[1759163868751,3.31613147,210.4,210.37,7.97]
[1759163868952,3.31613147,210.39,210.37,7.97]
[1759163869145,7.37,210.42,210.36,7.75201797]
[1759163869345,4.2741,210.44,210.36,7.75201797]
[1759163869346,3.31658664,210.41,210.37,4.2752]
[1759163869551,3.31658664,210.4,210.37,4.2752]
[1759163869752,3.31658664,210.39,210.38,7.97]
[1759163871451,3.31658664,210.39,210.37,4.2752]
[1759163871644,7.37,210.44,210.34,4.2759]
[1759163871852,7.37,210.42,210.34,4.2759]
[1759163872051,3.31723309,210.41,210.34,4.2759]
[1759163872254,3.31723309,210.4,210.34,4.2759]
[1759163872449,10.68723309,210.39,210.34,12.2459]
[1759163872651,3.31723309,210.38,210.32,7.75281797]
[1759163872856,7.37,210.41,210.32,11.44651797]
[1759163873153,3.31781753,210.4,210.32,11.44651797]
[1759163873349,3.31781753,210.39,210.32,11.44651797]
[1759163873550,3.31781753,210.38,210.33,4.2761]
[1759163873756,4.2751,210.39,210.33,4.2761]
[1759163873757,3.31781753,210.37,210.34,7.97]
[1759163873958,7.37,210.38,210.34,7.97]
[1759163874160,3.31804067,210.37,210.33,4.2761]
[1759163874361,4.2747,210.41,210.33,12.2661]
[1759163874664,3.31803478,210.4,210.33,12.2661]
[1759163874863,3.31803478,210.39,210.33,12.2661]
[1759163875066,3.31803478,210.38,210.33,4.2761]
[1759163875266,3.31803478,210.37,210.33,4.2761]
[1759163875466,4.2747,210.41,210.34,4.2759]
[1759163875664,7.77,210.39,210.27,7.99]
[1759163875862,11.24651797,210.36,210.27,7.99]
[1759163876065,3.31805996,210.35,210.27,7.99]
[1759163876369,3.31805996,210.34,210.27,7.99]
[1759163876669,3.31805996,210.33,210.27,7.99]
[1759163876866,4.2757,210.36,210.27,7.99]
[1759163877367,3.3176552,210.35,210.27,7.99]
[1759163877562,3.3176552,210.34,210.27,7.99]
[1759163877763,12.0452,210.38,210.27,7.99]
[1759163877962,3.31702381,210.37,210.29,7.99]
[1759163878168,3.31702381,210.36,210.29,7.99]
[1759163878364,3.31702381,210.35,210.29,7.99]
[1759163878566,4.2748,210.4,210.29,7.99]
[1759163878766,3.31618713,210.39,210.31,3.47651797]
[1759163878965,3.31618713,210.38,210.32,7.99]
[1759163879165,3.31618713,210.37,210.33,4.276]
[1759163879366,4.2748,210.4,210.34,7.99]
[1759163879568,3.31613979,210.39,210.33,12.266]
[1759163879764,3.31613979,210.38,210.32,7.99]
[1759163879959,12.98936139,210.46,210.35,7.99]
[1759163880158,3.31582154,210.45,210.35,7.99]
[1759163880369,3.31582154,210.44,210.37,4.2753]
[1759163880564,3.31582154,210.43,210.35,7.99]
[1759163880766,3.31582154,210.42,210.35,7.99]
[1759163880967,3.31582154,210.41,210.35,7.99]
[1759163881167,3.31582154,210.4,210.34,3.47651797]
[1759163881370,4.2739,210.45,210.35,7.99]
[1759163881572,3.31529496,210.44,210.35,7.99]
[1759163881770,3.31529496,210.43,210.35,7.99]
[1759163881970,3.31529496,210.42,210.35,7.99]
[1759163882174,3.31529496,210.41,210.35,7.99]
[1759163882473,4.2739,210.45,210.35,7.99]
[1759163882673,3.31516979,210.44,210.38,4.2751]
[1759163882968,11.08516979,210.43,210.38,4.2751]
[1759163883174,3.31516979,210.42,210.38,4.2751]
[1759163883375,3.31516979,210.41,210.35,12.2656]
[1759163883677,11.08551498,210.4,210.31,3.47651797]
[1759163883972,3.31551498,210.39,210.36,7.99]
[1759163884171,4.2744,210.42,210.36,7.99]
[1759163884372,3.31537664,210.41,210.36,7.99]
[1759163884574,3.31537664,210.4,210.36,7.99]
[1759163884776,3.31537664,210.39,210.36,7.99]
[1759163884968,4.2744,210.42,210.35,12.2657]
[1759163885171,3.31548021,210.41,210.35,12.2657]
[1759163885472,3.31548021,210.4,210.36,7.99]
[1759163885674,3.31548021,210.39,210.36,7.99]
[1759163885971,4.2744,210.42,210.36,7.99]
[1759163886272,11.08570085,210.41,210.32,7.99]
[1759163886572,3.31570085,210.4,210.32,7.99]
[1759163886768,3.31570085,210.39,210.32,7.99]
[1759163886972,12.044,210.45,210.32,7.99]
[1759163887174,3.31565512,210.44,210.32,7.99]
[1759163887373,3.31565512,210.43,210.32,7.99]
[1759163887575,3.31565512,210.42,210.36,4.2755]
[1759163887776,3.31565512,210.41,210.36,12.2655]
[1759163887969,3.31565512,210.4,210.37,7.99]
[1759163888167,3.31565512,210.39,210.37,7.99]
[1759163888369,4.2741,210.44,210.37,12.2652]
[1759163888570,3.3160242,210.43,210.37,7.99]
[1759163888775,3.3160242,210.42,210.38,7.99]
[1759163889077,7.77,210.45,210.38,7.99]
[1759163889277,3.31549608,210.44,210.38,7.99]
[1759163889575,3.31549608,210.43,210.37,3.47651797]
[1759163889781,3.31549608,210.42,210.37,3.47651797]
[1759163889969,7.77,210.45,210.38,7.99]
[1759163890174,3.31521176,210.44,210.38,7.99]
[1759163890475,3.31521176,210.43,210.37,3.47651797]
[1759163890781,3.31521176,210.42,210.4,7.99]
[1759163890981,7.77,210.45,210.4,7.99]
[1759163891182,7.77,210.43,210.35,4.2757]
[1759163891381,3.31494512,210.42,210.35,4.2757]
[1759163891586,3.31494512,210.41,210.35,4.2757]
[1759163891884,3.31521114,210.4,210.34,7.99]
[1759163892175,7.77,210.43,210.34,7.99]
[1759163892379,3.3153779,210.42,210.34,7.99]
[1759163892679,3.3153779,210.41,210.34,7.99]
[1759163892886,3.3153779,210.4,210.34,7.99]
[1759163893082,12.0447,210.41,210.34,7.99]
[1759163893282,3.31526898,210.4,210.34,7.99]
[1759163893579,7.77,210.41,210.31,11.46651797]
[1759163893780,3.31538094,210.4,210.31,11.46651797]
[1759163893977,3.31538094,210.39,210.31,11.46651797]
[1759163894171,4.2749,210.4,210.33,4.2761]
[1759163894376,3.33352855,210.39,210.33,4.2761]
[1759163894583,7.33,210.37,210.33,4.2761]
[1759163894784,7.33,210.44,210.34,4.2759]
[1759163894978,5.21936139,210.45,210.34,4.2759]
[1759163894979,7.33,210.42,210.34,4.2759]
[1759163895283,4.2749,210.4,210.33,7.85]
[1759163895581,3.33357882,210.39,210.33,7.85]
[1759163895781,10.66357882,210.38,210.33,7.85]